fUSD/lending_fUSD_20260412
["ID","MTS","AMOUNT","RATE_DAILY","PERIOD"]
[420341970,1776004246285,-1500.0,0.00034795,2]
[420341971,1776004246304,-150.0,0.00034796,7]
[420341972,1776004246315,-150.0,0.00034798,7]
[420341973,1776004246325,-150.0,0.000348,7]
[420341974,1776004246345,-150.0,0.00034811,7]
[420341975,1776004246356,-150.0,0.00034813,7]
[420341976,1776004246366,-301.91,0.00034814,30]
[420341977,1776004246378,-150.0,0.00034815,7]
[420341978,1776004246396,-150.0,0.00034824,30]
[420341979,1776004246406,-174.0,0.00034828,30]
[420341981,1776004246419,-249.0,0.00034828,30]
[420341983,1776004246437,-361.0,0.00034828,30]
[420341985,1776004246447,-156.0,0.00034828,30]
[420341986,1776004246458,-156.0,0.00034828,30]
[420341987,1776004246472,-221.0,0.00034829,30]
[420341988,1776004246482,-181.0,0.00034829,30]
[420341989,1776004246492,-171.0,0.00034829,30]
[420341990,1776004246506,-150.0,0.00034833,7]
[420341991,1776004246523,-150.0,0.0003484,7]
[420341992,1776004246533,-150.0,0.00034843,7]
[420341993,1776004246556,-150.0,0.00034871,7]
[420341994,1776004246566,-150.0,0.00034871,7]
[420341995,1776004246578,-150.0,0.00034879,7]
[420341996,1776004246592,-150.0,0.00034879,7]
[420341997,1776004246606,-150.0,0.00034881,30]
[420341998,1776004246618,-150.0,0.00034883,7]
[420341999,1776004246628,-150.0,0.00034902,7]
[420342000,1776004246654,-150.0,0.00034926,7]
[420342001,1776004246675,-150.0,0.00034926,7]
[420342002,1776004246687,-150.0,0.00034935,7]
[420342003,1776004246696,-150.0,0.00034937,30]
[420342004,1776004246710,-150.0,0.00034945,7]
[420342005,1776004246723,-150.0,0.00034946,7]
[420342006,1776004246733,-150.0,0.0003496,7]
[420342007,1776004246743,-150.0,0.0003496,7]
[420342008,1776004246762,-150.0,0.00034969,7]
[420342009,1776004246775,-150.0,0.00034982,7]
[420342010,1776004246790,-152.0,0.00034993,5]
[420342011,1776004246806,-150.0,0.00034994,30]
[420342012,1776004246826,-150.0,0.00035,7]
[420342013,1776004246836,-239.73,0.00035,120]
[420342014,1776004246864,-607.12,0.00035,120]
[420342015,1776004246874,-1427.58,0.00035,120]
[420342016,1776004246886,-160.0,0.00035,30]
[420342017,1776004246905,-1085.82,0.00035,2]
[420342018,1776004246914,-150.0,0.00035011,7]
[420342019,1776004246926,-500.0,0.00035014,5]
[420342020,1776004246949,-150.0,0.00035014,7]
[420342021,1776004246962,-150.0,0.00035014,7]
[420342022,1776004246995,-150.0,0.00035018,7]
[420342023,1776004247005,-150.0,0.0003502,7]
[420342024,1776004247020,-150.0,0.00035038,7]
[420342025,1776004247048,-150.0,0.00035044,7]
[420342026,1776004247060,-150.0,0.00035051,30]
[420342027,1776004247079,-150.0,0.00035054,7]
[420342028,1776004247095,-150.0,0.00035058,7]
[420342029,1776004247108,-500.0,0.00035068,120]
[420342030,1776004247134,-150.0,0.00035077,7]
[420342031,1776004247145,-150.0,0.00035082,7]
[420342032,1776004247162,-1500.0,0.00035094,2]
[420342033,1776004247182,-150.0,0.00035094,7]
[420342034,1776004247192,-150.0,0.00035094,7]
[420342035,1776004247208,-150.0,0.00035097,7]
[420342036,1776004247232,-150.0,0.00035107,30]
[420342037,1776004247262,-150.0,0.00035107,7]
[420342038,1776004247273,-150.0,0.00035135,7]
[420342039,1776004247320,-150.0,0.00035139,7]
[420342040,1776004247330,-150.0,0.0003515,7]
[420342041,1776004247344,-150.0,0.0003515,7]
[420342042,1776004247366,-150.0,0.0003515,7]
[420342043,1776004247378,-150.0,0.00035164,30]
[420342044,1776004247413,-150.0,0.00035169,7]
[420342045,1776004247428,-150.0,0.00035181,7]
[420342046,1776004247448,-150.0,0.00035182,7]
[420342047,1776004247478,-150.0,0.00035194,7]
[420342048,1776004247496,-554.99,0.000352,7]
[420342049,1776004247535,-150.0,0.000352,7]
[420342050,1776004247546,-150.0,0.00035206,7]
[420342051,1776004247563,-150.0,0.00035218,7]
[420342052,1776004247576,-150.0,0.00035221,30]
[420342053,1776004247586,-150.0,0.00035225,7]
[420342054,1776004247596,-150.0,0.00035243,7]
[420342055,1776004247610,-150.0,0.00035252,7]
[420342056,1776004247624,-150.0,0.00035262,7]
[420342057,1776004247636,-150.0,0.00035267,7]
[420342058,1776004247648,-150.0,0.00035278,7]
[420342059,1776004247675,-150.0,0.00035278,30]
[420342060,1776004247686,-150.0,0.00035286,7]
[420342061,1776004247701,-150.0,0.00035286,7]
[420342062,1776004247722,-150.0,0.00035303,7]
[420342063,1776004247737,-150.0,0.0003531,7]
[420342064,1776004247759,-150.0,0.00035311,7]
[420342065,1776004247769,-150.0,0.00035318,7]
[420342066,1776004247790,-150.0,0.00035318,7]
[420342067,1776004247812,-150.0,0.00035334,30]
[420342068,1776004247840,-150.0,0.0003534,7]
[420342069,1776004247880,-150.0,0.00035353,7]
[420342070,1776004247895,-150.0,0.00035354,7]
[420342071,1776004247927,-150.0,0.00035369,7]
[420342072,1776004247945,-150.0,0.00035374,7]
[420342073,1776004247967,-150.0,0.00035391,30]
[420342074,1776004248010,-150.0,0.00035392,7]
[420342075,1776004248022,-150.0,0.00035396,7]
[420342076,1776004248048,-150.0,0.000354,7]
[420342077,1776004248062,-150.0,0.00035421,7]
[420342078,1776004248078,-150.0,0.00035421,7]
[420342079,1776004248095,-150.0,0.00035426,7]
[420342080,1776004248122,-150.0,0.00035428,7]
[420342081,1776004248134,-150.0,0.00035429,7]
[420342082,1776004248153,-150.0,0.00035438,7]
[420342083,1776004248178,-150.0,0.00035448,30]
[420342084,1776004248192,-150.0,0.00035467,7]
[420342085,1776004248219,-150.0,0.00035467,7]
[420342086,1776004248249,-150.0,0.00035467,7]
[420342087,1776004248267,-150.0,0.00035481,7]
[420342088,1776004248279,-509.0,0.00035484,11]
[420342089,1776004248289,-150.0,0.00035485,7]
[420342090,1776004248304,-150.0,0.00035486,7]
[420342091,1776004248314,-217.65,0.00035488,30]
[420342092,1776004248325,-150.0,0.00035489,7]
[420342093,1776004248337,-150.5402,0.000355,2]
[420342094,1776004248351,-150.0,0.00035504,30]
[420342095,1776004248361,-150.0,0.00035524,7]
[420342096,1776004248375,-150.0,0.00035541,7]
[420342097,1776004248386,-150.0,0.00035541,7]
[420342098,1776004248398,-150.0,0.00035545,7]
[420342099,1776004248417,-150.0,0.00035548,7]
[420342100,1776004248428,-150.0,0.00035557,7]
[420342101,1776004248441,-150.0,0.00035557,7]
[420342102,1776004248457,-150.0,0.00035566,7]
[420342103,1776004248467,-500.0,0.00035572,15]
[420342104,1776004248485,-500.0,0.00035572,15]
[420342105,1776004248501,-500.0,0.00035572,15]
[420342106,1776004248511,-249.06405641,0.00035572,7]
[420342107,1776004248526,-150.0,0.00035597,7]
[420342108,1776004248536,-150.0,0.000356,7]
[420342109,1776004248552,-150.0,0.00035603,7]
[420342110,1776004248575,-150.0,0.00035609,7]
[420342111,1776004248589,-442.56275979,0.0003561,2]
[420342112,1776004248599,-150.0,0.00035616,7]
[420342113,1776004248613,-150.0,0.00035625,7]
[420342114,1776004248624,-150.0,0.00035652,7]
[420342115,1776004248639,-150.0,0.00035653,7]
[420342116,1776004248665,-150.0,0.00035662,7]
[420342117,1776004248675,-150.0,0.00035671,7]
[420342118,1776004248686,-150.0,0.0003569,7]
[420342119,1776004248702,-150.0,0.00035693,7]
[420342120,1776004248713,-150.0,0.00035693,7]
[420342121,1776004248724,-150.0,0.00035694,7]
[420342122,1776004248737,-150.0,0.00035709,7]
[420342123,1776004248747,-150.0,0.0003572,7]
[420342124,1776004248758,-150.0,0.0003572,7]
[420342125,1776004248769,-150.0,0.00035737,7]
[420342126,1776004248783,-150.0,0.00035761,7]
[420342127,1776004248799,-150.0,0.00035765,7]
[420342128,1776004248811,-150.0,0.00035765,7]
[420342129,1776004248821,-150.0,0.00035778,7]
[420342130,1776004248837,-500.0,0.00035779,15]
[420342131,1776004248848,-503.345429,0.00035779,15]
[420342132,1776004248859,-362.88632096,0.00035779,15]
[420342133,1776004250247,-137.11367904,0.00035779,15]
[420342134,1776004250257,-150.0,0.0003578,7]
[420342135,1776004250285,-1085.82,0.0003578,5]
[420342136,1776004250299,-150.0,0.00035794,7]
[420342137,1776004250309,-554.99,0.000358,7]
[420342138,1776004250330,-150.0,0.000358,7]
[420342139,1776004250340,-150.0,0.00035821,7]
[420342140,1776004250350,-150.0,0.00035822,7]
[420342141,1776004250366,-174.0,0.00035828,30]
[420342142,1776004250389,-249.0,0.00035828,30]
[420342143,1776004250398,-361.0,0.00035828,30]
[420342144,1776004250421,-156.0,0.00035828,30]
[420342145,1776004250449,-156.0,0.00035828,30]
[420342146,1776004250460,-150.0,0.00035829,7]
[420342147,1776004250471,-150.0,0.00035829,7]
[420342148,1776004250491,-221.0,0.00035829,30]
[420342149,1776004250502,-181.0,0.00035829,30]
[420342150,1776004250514,-171.0,0.00035829,30]
[420342151,1776004250532,-150.0,0.00035837,7]
[420342152,1776004250542,-150.0,0.00035839,7]
[420342153,1776004250558,-150.0,0.00035865,7]
[420342154,1776004250570,-150.0,0.00035876,7]
[420342155,1776004250581,-150.0,0.00035889,7]
[420342156,1776004250600,-500.0,0.0003589,120]
[420342157,1776004250609,-150.0,0.00035895,7]
[420342158,1776004250618,-150.0,0.00035896,7]
[420342159,1776004250630,-500.0,0.00035899,15]
[420342160,1776004250652,-150.0,0.00035899,2]
[420342161,1776004250663,-8300.0,0.000359,13]
[420342162,1776004250672,-190.721584,0.000359,7]
[420342163,1776004250683,-190.721584,0.000359,7]
[420342164,1776004250695,-190.721584,0.000359,7]
[420342165,1776004250715,-190.721584,0.000359,7]
[420342166,1776004250724,-1975.964204,0.000359,7]
[420342167,1776004250742,-1975.964204,0.000359,7]
[420342168,1776004250753,-1975.964204,0.000359,7]
[420342169,1776004250763,-1975.964204,0.000359,7]
[420342170,1776004250772,-151.0,0.000359,7]
[420342171,1776004250790,-151.0,0.000359,7]
[420342172,1776004250803,-150.0,0.00035901,30]
[420342173,1776004250813,-150.0,0.00035908,7]
[420342174,1776004250835,-150.0,0.00035914,7]
[420342175,1776004250846,-150.0,0.00035916,7]
[420342176,1776004250856,-150.0,0.00035932,7]
[420342177,1776004250891,-150.0,0.00035951,7]
[420342178,1776004250903,-150.0,0.00035954,7]
[420342179,1776004250916,-150.0,0.00035964,7]
[420342180,1776004250939,-150.0,0.00035964,7]
[420342181,1776004250951,-150.0,0.00035988,7]
[420342182,1776004250966,-150.0,0.00035988,7]
[420342183,1776004250991,-150.0,0.00035993,7]
[420342184,1776004251002,-150.0,0.00036,7]
[420342185,1776004251025,-150.0,0.00036012,7]
[420342186,1776004251039,-150.0,0.00036032,7]
[420342187,1776004251049,-1017.0,0.00036033,5]
[420342188,1776004251078,-150.0,0.00036036,7]
[420342189,1776004251087,-150.0,0.00036039,7]
[420342190,1776004251097,-150.0,0.00036044,7]
[420342191,1776004251114,-150.0,0.00036063,7]
[420342192,1776004251127,-150.0,0.00036071,7]
[420342193,1776004251137,-150.0,0.00036072,30]
[420342194,1776004251148,-150.0,0.00036072,7]
[420342195,1776004251162,-150.0,0.00036079,7]
[420342196,1776004251172,-150.0,0.000361,7]
[420342197,1776004251182,-150.0,0.000361,7]
[420342198,1776004251195,-150.0,0.000361,7]
[420342199,1776004251206,-150.0,0.000361,7]
[420342200,1776004251216,-150.0,0.000361,7]
[420342201,1776004251227,-150.0,0.000361,7]
[420342202,1776004251242,-1000.0,0.0003611,5]
[420342203,1776004251254,-150.0,0.00036121,7]
[420342204,1776004251264,-150.0,0.00036129,7]
[420342205,1776004251280,-150.0,0.00036137,7]
[420342206,1776004251294,-150.0,0.00036156,7]
[420342207,1776004251304,-150.0,0.00036161,7]
[420342208,1776004251315,-150.0,0.00036164,7]
[420342209,1776004251330,-150.0,0.00036168,7]
[420342210,1776004251344,-150.0,0.00036188,7]
[420342211,1776004251357,-873.70672489,0.00036199,2]
[420342212,1776004251373,-150.0,0.000362,7]
[420342213,1776004251397,-150.0,0.00036207,7]
[420342214,1776004251410,-150.0,0.00036212,7]
[420342215,1776004251426,-150.0,0.00036212,7]
[420342216,1776004251438,-150.0,0.00036236,7]
[420342217,1776004251450,-150.0,0.00036236,7]
[420342218,1776004251466,-150.0,0.00036246,7]
[420342219,1776004251478,-150.0,0.00036249,7]
[420342220,1776004251490,-1000.0,0.00036255,7]
[420342221,1776004251499,-1704.30917076,0.00036259,2]
[420342222,1776004251511,-150.0,0.00036268,7]
[420342223,1776004251524,-150.0,0.00036284,7]
[420342224,1776004251534,-150.0,0.00036286,7]
[420342225,1776004251552,-150.0,0.00036292,7]
[420342226,1776004251561,-150.0,0.00036304,7]
[420342227,1776004251574,-150.0,0.00036305,7]
[420342228,1776004251592,-150.0,0.00036311,7]
[420342229,1776004251601,-150.0,0.00036324,7]
[420342230,1776004251617,-150.0,0.00036335,7]
[420342231,1776004251634,-150.0,0.00036355,30]
[420342232,1776004251644,-150.0,0.00036355,7]
[420342233,1776004251656,-150.0,0.00036361,7]
[420342234,1776004251672,-150.0,0.00036363,7]
[420342235,1776004251682,-345.04,0.00036369,30]
[420342236,1776004251699,-150.0,0.00036371,7]
[420342237,1776004251708,-150.0,0.00036371,7]
[420342238,1776004251727,-150.0,0.00036378,7]
[420342239,1776004251740,-150.0,0.00036379,7]
[420342240,1776004251767,-2000.0,0.00036395,120]
[420342241,1776004251777,-150.0,0.000364,7]
[420342242,1776004251790,-554.99,0.000364,7]
[420342243,1776004251805,-150.0,0.00036406,7]
[420342244,1776004251816,-250.0,0.00036411,40]
[420342245,1776004251825,-150.0,0.00036412,7]
[420342246,1776004251843,-150.0,0.0003642,7]
[420342247,1776004251854,-150.0,0.00036422,7]
[420342248,1776004251865,-150.0,0.00036435,7]
[420342249,1776004251874,-150.0,0.00036435,7]
[420342250,1776004251894,-2300.0,0.00036438,21]
[420342251,1776004251906,-900.0,0.00036438,21]
[420342252,1776004251916,-2000.0,0.00036438,2]
[420342253,1776004251933,-150.0,0.00036439,7]
[420342254,1776004251942,-2000.0,0.00036449,120]
[420342255,1776004251963,-150.0,0.00036463,7]
[420342256,1776004251977,-150.0,0.00036469,7]
[420342257,1776004251991,-150.0,0.0003648,7]
[420342258,1776004252003,-150.0,0.0003648,7]
[420342259,1776004252027,-150.0,0.00036491,7]
[420342260,1776004252041,-383.42591127,0.00036497,72]
[420342261,1776004252058,-2000.0,0.00036504,120]
[420342262,1776004252072,-150.0,0.00036506,7]
[420342263,1776004252085,-150.0,0.00036507,7]
[420342264,1776004252095,-150.0,0.00036507,7]
[420342265,1776004252120,-1000.0,0.00036508,7]
[420342266,1776004252131,-150.0,0.0003651,7]
[420342267,1776004252144,-150.0,0.00036529,7]
[420342268,1776004252176,-150.0,0.00036538,7]
[420342269,1776004252187,-150.0,0.00036547,7]
[420342270,1776004252202,-150.0,0.00036548,7]
[420342271,1776004252215,-2000.0,0.00036559,120]
[420342272,1776004252224,-1085.82,0.0003657,7]
[420342273,1776004252237,-150.0,0.00036575,7]
[420342274,1776004252256,-150.0,0.00036584,7]
[420342275,1776004252266,-150.0,0.00036591,7]
[420342276,1776004252284,-150.0,0.00036597,7]
[420342277,1776004252297,-150.0,0.000366,7]
[420342278,1776004252307,-150.0,0.00036603,7]
[420342279,1776004252317,-2000.0,0.00036614,120]
[420342280,1776004252331,-150.0,0.00036634,7]
[420342281,1776004252342,-150.0,0.00036643,7]
[420342282,1776004252351,-150.0,0.00036643,7]
[420342283,1776004252364,-150.0,0.00036652,7]
[420342284,1776004252379,-150.0,0.00036655,7]
[420342285,1776004252389,-150.0,0.00036659,7]
[420342286,1776004252399,-150.0,0.00036659,7]
[420342287,1776004252416,-2000.0,0.00036668,120]
[420342288,1776004252429,-150.0,0.00036676,7]
[420342289,1776004252439,-150.0,0.00036696,7]
[420342290,1776004252452,-150.0,0.00036711,7]
[420342291,1776004252465,-500.0,0.00036712,120]
[420342292,1776004252474,-150.0,0.00036714,7]
[420342293,1776004252485,-150.0,0.00036715,7]
[420342294,1776004252501,-150.0,0.00036719,7]
[420342295,1776004252515,-2000.0,0.00036723,120]
[420342296,1776004252529,-150.0,0.00036733,7]
[420342297,1776004252539,-150.0,0.00036733,7]
[420342298,1776004252549,-150.0,0.00036733,7]
[420342299,1776004252558,-150.0,0.00036752,7]
[420342300,1776004252572,-150.0,0.00036762,7]
[420342301,1776004252581,-150.0,0.00036771,7]
[420342302,1776004252592,-150.0,0.00036772,7]
[420342303,1776004252604,-150.0,0.00036774,7]
[420342304,1776004252616,-2000.0,0.00036778,120]
[420342305,1776004252625,-150.0,0.00036779,7]
[420342306,1776004252638,-150.0,0.00036779,7]
[420342307,1776004252649,-150.0,0.000368,7]
[420342308,1776004252661,-150.0,0.00036804,7]
[420342309,1776004252675,-150.0,0.00036808,7]
[420342310,1776004252689,-150.0,0.00036809,30]
[420342311,1776004252702,-150.0,0.00036809,7]
[420342312,1776004252714,-150.0,0.00036826,7]
[420342313,1776004252738,-174.0,0.00036828,30]
[420342314,1776004252755,-249.0,0.00036828,30]
[420342315,1776004252769,-361.0,0.00036828,30]
[420342316,1776004252789,-156.0,0.00036828,30]
[420342317,1776004252799,-156.0,0.00036828,30]
[420342318,1776004252812,-221.0,0.00036829,30]
[420342319,1776004252853,-181.0,0.00036829,30]
[420342320,1776004252867,-171.0,0.00036829,30]
[420342321,1776004252898,-150.0,0.00036831,7]
[420342322,1776004252916,-1109.44117277,0.00036833,120]
[420342323,1776004253012,-407.40406723,0.00036833,120]
[420342324,1776004253374,-1464.377,0.00024048,2]
[420342325,1776004253394,-1272.0,0.00027,10]
[420342326,1776004253404,-1348.0,0.00027048,2]
[420342327,1776004253414,-483.15476,0.00036833,120]
[420342328,1776004253430,-150.0,0.00036846,7]
[420342329,1776004253442,-150.0,0.00036847,7]
[420342330,1776004253453,-150.0,0.0003686,7]
[420342331,1776004253463,-150.0,0.00036866,7]
[420342332,1776004253477,-150.0,0.00036882,7]
[420342333,1776004253492,-150.0,0.00036882,7]
[420342334,1776004253507,-63.46824,0.00036888,120]
[420342335,1776004253522,-1936.53176,0.00036888,120]
[420342336,1776004253546,-150.0,0.00036889,7]
[420342337,1776004253557,-150.0,0.0003689,7]
[420342338,1776004253575,-319.86,0.00036893,30]
[420342339,1776004253593,-150.0,0.00036897,7]
[420342340,1776004253622,-150.5763,0.000369,2]
[420342341,1776004253636,-150.0,0.00036914,7]
[420342342,1776004253655,-150.0,0.00036914,7]
[420342343,1776004253680,-150.0,0.00036922,7]
[420342344,1776004253690,-150.0,0.00036933,7]
[420342345,1776004253704,-150.0,0.00036938,7]
[420342346,1776004253714,-2000.0,0.00036942,120]
[420342347,1776004253730,-150.0,0.00036948,7]
[420342348,1776004253750,-150.0,0.00036957,7]
[420342349,1776004253761,-150.0,0.00036975,7]
[420342350,1776004253774,-150.0,0.00036979,7]
[420342351,1776004253817,-150.0,0.00036982,7]
[420342352,1776004253826,-176.97,0.00036986,9]
[420342353,1776004253857,-150.0,0.00036994,7]
[420342354,1776004253866,-128.74995546,0.00036997,120]
[420342355,1776004254027,-1871.25004454,0.00036997,120]
[420342356,1776004254041,-1564.87,0.00036998,120]
[420342357,1776004254069,-1564.87,0.00036998,120]
[420342358,1776004254079,-1564.87,0.00036998,120]
[420342359,1776004254091,-1564.87,0.00036998,120]
[420342360,1776004254106,-1564.87,0.00036998,120]
[420342361,1776004254116,-1564.87,0.00036998,120]
[420342362,1776004254130,-1564.87,0.00036998,120]
[420342363,1776004254140,-1564.87,0.00036998,120]
[420342364,1776004254153,-1564.87,0.00036998,120]
[420342365,1776004254163,-1564.87,0.00036998,120]
[420342366,1776004254179,-1564.87,0.00036998,120]
[420342367,1776004254189,-1564.87,0.00036998,120]
[420342368,1776004254199,-1564.87,0.00036998,120]
[420342369,1776004254211,-1564.87,0.00036998,120]
[420342370,1776004254222,-1564.87,0.00036998,120]
[420342371,1776004254233,-1564.86,0.00036998,120]
[420342372,1776004254243,-1564.87,0.00036998,120]
[420342373,1776004254255,-1564.87,0.00036998,120]
[420342374,1776004254265,-1564.87,0.00036998,120]
[420342375,1776004254276,-1564.87,0.00036998,120]
[420342376,1776004254286,-837.28207733,0.00036998,120]
[420342377,1776004254309,-655.78606492,0.00036998,120]
[420342378,1776004254325,-71.82185775,0.00036998,120]
[420342379,1776004254337,-428.17814225,0.00036998,120]
[420342380,1776004255034,-1178.30638592,0.00034243,30]
[420342381,1776004255053,-98.69361408,0.00034243,30]
[420342382,1776004255069,-1136.69185775,0.00036998,120]
[420342383,1776004255079,-1564.87,0.00036998,120]
[420342384,1776004255091,-1564.87,0.00036998,120]
[420342385,1776004255111,-1564.87,0.00036998,120]
[420342386,1776004255120,-1564.87,0.00036998,120]
[420342387,1776004255134,-1564.87,0.00036998,120]
[420342388,1776004255146,-1564.87,0.00036998,120]
[420342389,1776004255164,-1564.87,0.00036998,120]
[420342390,1776004255173,-1564.87,0.00036998,120]
[420342391,1776004255182,-1564.87,0.00036998,120]
[420342392,1776004255194,-1564.87,0.00036998,120]
[420342393,1776004255214,-1564.87,0.00036998,120]
[420342394,1776004255233,-1564.87,0.00036998,120]
[420342395,1776004255242,-1564.87,0.00036998,120]
[420342396,1776004255255,-1564.87,0.00036998,120]
[420342397,1776004255275,-1564.87,0.00036998,120]
[420342398,1776004255284,-1564.87,0.00036998,120]
[420342399,1776004255293,-1564.87,0.00036998,120]
[420342400,1776004255318,-407.96017715,0.00036998,120]
[420342401,1776004255374,-807.51110822,0.00036998,120]
[420342402,1776004255399,-146.42871463,0.00036998,120]
[420342403,1776004255411,-1564.87,0.00036998,120]
[420342404,1776004255420,-825.49099757,0.00036998,120]
[420342405,1776004255434,-739.37900243,0.00036998,120]
[420342406,1776004255443,-211.05321173,0.00036998,120]
[420342407,1776004255467,-1353.81678827,0.00036998,120]
[420342408,1776004255478,-1564.87,0.00036998,120]
[420342409,1776004255487,-1500.1951817,0.00036998,120]
[420342412,1776004306127,210.0,0.0003013,120]
[420342413,1776004306906,445.0,0.0003013,120]
[420342414,1776004355250,963.0,0.0003013,120]
[420342415,1776004356068,856.0,0.0003013,120]
[420342416,1776004356940,1253.0,0.0003013,120]
[420342417,1776004359572,302.0,0.0003013,120]
[420342418,1776004415252,492.0,0.0003013,120]
[420342419,1776004416423,1153.0,0.0003013,120]
[420342420,1776004481257,741.0,0.0003013,120]
[420342421,1776004540106,3292.89,0.00030136,120]
[420342422,1776004546075,485.0,0.0003013,120]
[420342423,1776004681373,1350.0,0.00030136,120]
[420342424,1776005127798,1032.1,0.0003013,120]
[420342425,1776005145134,-150.0,0.00014203,2]
[420342426,1776005145159,-150.0,0.00014203,2]
[420342427,1776005145183,-216.08938292,0.00014203,2]
[420342428,1776005145207,-150.0,0.00014203,2]
[420342429,1776005145230,-150.0,0.00014203,2]
[420342430,1776005145254,-150.0,0.00014203,2]
[420342431,1776005145278,-150.0,0.00014203,2]
[420342432,1776005145302,-150.0,0.00014203,2]
[420342433,1776005145326,-150.0,0.00014203,2]
[420342434,1776005145350,-150.0,0.00014203,2]
[420342435,1776005145374,-150.0,0.00014203,2]
[420342436,1776005145399,-150.0,0.00014271,2]
[420342437,1776005145423,-150.0,0.00014271,2]
[420342438,1776005145447,-150.0,0.00014296,2]
[420342439,1776005145471,-150.0,0.00014315,2]
[420342440,1776005145495,-150.0,0.00014324,2]
[420342441,1776005145520,-150.0,0.0001434,2]
[420342442,1776005145545,-150.0,0.0001434,2]
[420342443,1776005145571,-97.40147927,0.00014388,2]
[420342444,1776005306864,500.0,0.00030136,120]
[420342445,1776005313190,500.0,0.00030136,120]
[420342446,1776005313510,500.0,0.00030136,120]
[420342447,1776005314002,500.0,0.00030136,120]
[420342448,1776005314430,500.0,0.00030136,120]
[420342449,1776005314906,500.0,0.00030136,120]
[420342450,1776005316327,500.0,0.00030136,120]
[420342451,1776005316602,500.0,0.00030136,120]
[420342452,1776005316769,500.0,0.00030136,120]
[420342453,1776005317092,500.0,0.00030136,120]
[420342454,1776005317214,500.0,0.00030136,120]
[420342455,1776005317663,500.0,0.00030136,120]
[420342456,1776005318094,500.0,0.00030136,120]
[420342457,1776005318539,500.0,0.00030136,120]
[420342458,1776005319035,500.0,0.00030136,120]
[420342459,1776005319515,500.0,0.00030136,120]
[420342460,1776005320077,500.0,0.00030136,120]
[420342461,1776005320370,500.0,0.00030136,120]
[420342462,1776005320957,500.0,0.00030136,120]
[420342463,1776005321289,500.0,0.00030136,120]
[420342468,1776005431915,-151.0,0.0001399,2]
[420342469,1776005431927,-213.0,0.0001399,2]
[420342470,1776005431937,-1200.0,0.00014185,2]
[420342471,1776005431947,-1200.0,0.00014185,2]
[420342472,1776005431966,-5095.84457289,0.00014186,2]
[420342473,1776005431981,-7024.44945277,0.00014186,2]
[420342474,1776005432027,-702.36606411,0.00014186,2]
[420342475,1776005432040,-507.104,0.00014186,2]
[420342476,1776005432058,-994.68708973,0.00014186,2]
[420342477,1776005432073,-13012.76393067,0.00014186,2]
[420342478,1776005432085,-522.39488983,0.00014186,2]